fUST/lending_fUST_20250427
["ID","MTS","AMOUNT","RATE_DAILY","PERIOD"]
[359124608,1745719848974,-400.0,0.00019452,2]
[359124609,1745719848984,-400.0,0.00019452,2]
[359124610,1745719848993,-400.0,0.00019452,2]
[359124611,1745719849003,-470.51459854,0.00019452,2]
[359124612,1745719849012,-318.41596373,0.00019452,2]
[359124613,1745719849022,-403.99,0.00019452,2]
[359124614,1745719849032,-417.17,0.00019452,2]
[359124615,1745719849042,-674.92,0.00019452,2]
[359124616,1745719849052,-977.2,0.00019452,2]
[359124617,1745719849062,-400.0,0.00019452,2]
[359124618,1745719849072,-400.0,0.00019452,2]
[359124619,1745719849082,-400.0,0.00019452,2]
[359124620,1745719849092,-400.0,0.00019452,2]
[359124621,1745719849101,-400.0,0.00019452,2]
[359124622,1745719849110,-1478.94,0.00019452,2]
[359124623,1745719849120,-419.51,0.00019452,2]
[359124624,1745719849130,-885.16,0.00019452,2]
[359124625,1745719849141,-1255.34,0.00019452,2]
[359124626,1745719849151,-400.0,0.00019726,2]
[359124627,1745719849161,-407.33,0.00019726,2]
[359124628,1745719849172,-400.0,0.00019726,2]
[359124629,1745719849183,-408.56,0.00019726,2]
[359124630,1745719849193,-463.2,0.00019726,2]
[359124631,1745719849203,-400.0,0.00019726,2]
[359124632,1745719849213,-152.697569,0.00019726,2]
[359124633,1745719849224,-518.28401252,0.00019726,2]
[359124634,1745719849235,-400.0,0.00019726,2]
[359124635,1745719849246,-400.0,0.00019726,2]
[359124636,1745719849256,-400.0,0.00019726,2]
[359124637,1745719849267,-400.0,0.00019726,2]
[359124638,1745719849277,-400.0,0.00019726,2]
[359124639,1745719849287,-400.0,0.00019726,2]
[359124640,1745719849298,-403.99,0.00019726,2]
[359124641,1745719849309,-417.17,0.00019726,2]
[359124642,1745719849320,-674.92,0.00019726,2]
[359124643,1745719849330,-977.2,0.00019726,2]
[359124644,1745719849340,-326.60098604,0.00019726,2]
[359124645,1745719849350,-400.0,0.00019726,2]
[359124646,1745719849360,-400.0,0.00019726,2]
[359124647,1745719849370,-188.0078335,0.00019726,2]
[359124648,1745719849381,-400.0,0.00019726,2]
[359124649,1745719849393,-1478.94,0.00019726,2]
[359124650,1745719849403,-419.51,0.00019726,2]
[359124651,1745719849413,-885.16,0.00019726,2]
[359124652,1745719849423,-1255.34,0.00019726,2]
[359124653,1745719849433,-400.0,0.0002,2]
[359124654,1745719849444,-407.33,0.0002,2]
[359124655,1745719849454,-400.0,0.0002,2]
[359124656,1745719849464,-408.56,0.0002,2]
[359124657,1745719849474,-463.2,0.0002,2]
[359124658,1745719849484,-160.0,0.0002,3]
[359124659,1745719849494,-400.0,0.0002,2]
[359124660,1745719849505,-400.0,0.0002,2]
[359124661,1745719849514,-404.20532692,0.0002,2]
[359124662,1745719849524,-531.78627572,0.0002,2]
[359124663,1745719849534,-400.0,0.0002,2]
[359124664,1745719849544,-400.0,0.0002,2]
[359124665,1745719849555,-400.0,0.0002,2]
[359124666,1745719849567,-403.99,0.0002,2]
[359124667,1745719849579,-417.17,0.0002,2]
[359124668,1745719849589,-674.92,0.0002,2]
[359124669,1745719849598,-977.2,0.0002,2]
[359124670,1745719849608,-400.0,0.0002,2]
[359124671,1745719849618,-514.76,0.0002,2]
[359124672,1745719849628,-400.0,0.0002,2]
[359124673,1745719849637,-1478.94,0.0002,2]
[359124674,1745719849650,-419.51,0.0002,2]
[359124675,1745719849660,-885.16,0.0002,2]
[359124676,1745719849670,-1255.34,0.0002,2]
[359124677,1745719849680,-316.30921931,0.00020038,2]
[359124678,1745719849690,-507.56,0.00020273,2]
[359124679,1745719849700,-407.33,0.00020273,2]
[359124680,1745719849710,-916.708043,0.00020273,2]
[359124681,1745719849720,-916.708043,0.00020273,2]
[359124682,1745719849731,-400.0,0.00020273,2]
[359124683,1745719849741,-408.56,0.00020273,2]
[359124684,1745719849751,-463.2,0.00020273,2]
[359124685,1745719849760,-400.0,0.00020273,2]
[359124686,1745719849770,-400.0,0.00020273,2]
[359124687,1745719849780,-481.56661752,0.00020273,2]
[359124688,1745719849789,-400.0,0.00020273,2]
[359124689,1745719849798,-403.99,0.00020273,2]
[359124690,1745719849807,-417.17,0.00020273,2]
[359124691,1745719849819,-674.92,0.00020273,2]
[359124692,1745719849830,-977.2,0.00020273,2]
[359124693,1745719849841,-400.0,0.00020273,2]
[359124694,1745719849851,-1478.94,0.00020273,2]
[359124695,1745719849861,-419.51,0.00020273,2]
[359124696,1745719849871,-885.16,0.00020273,2]
[359124697,1745719849882,-500.0,0.00020386,2]
[359124698,1745719849893,-151.0,0.00020547,2]
[359124699,1745719849903,-407.33,0.00020547,2]
[359124700,1745719849913,-400.0,0.00020547,2]
[359124701,1745719849923,-408.56,0.00020547,2]
[359124702,1745719849933,-463.2,0.00020547,2]
[359124703,1745719849943,-400.0,0.00020547,2]
[359124704,1745719849952,-400.0,0.00020547,2]
[359124705,1745719849963,-400.0,0.00020547,2]
[359124706,1745719849972,-403.99,0.00020547,2]
[359124707,1745719849982,-417.17,0.00020547,2]
[359124708,1745719849992,-116.10136596,0.00020547,2]
[359124709,1745719850007,-558.81863404,0.00020547,2]
[359124710,1745719850016,-977.2,0.00020547,2]
[359124711,1745719850026,-400.0,0.00020547,2]
[359124712,1745719850035,-1478.94,0.00020547,2]
[359124713,1745719850046,-419.51,0.00020547,2]
[359124714,1745719850056,-885.16,0.00020547,2]
[359124715,1745719850067,-203.354,0.00020668,2]
[359124716,1745719850077,-246.67,0.00020668,2]
[359124717,1745719850087,-250.0,0.00020668,2]
[359124718,1745719850096,-153.33190648,0.00020668,2]
[359124719,1745719850186,-321.66502649,0.00020273,2]
[359124720,1745719850198,-933.67497351,0.00020273,2]
[359124721,1745719850208,-1255.34,0.00020547,2]
[359124722,1745719850217,-103.11609352,0.00020668,2]
[359124723,1745719850228,-172.762,0.00020668,2]
[359124724,1745719850238,-407.33,0.00020821,2]
[359124725,1745719850247,-400.0,0.00020821,2]
[359124726,1745719850256,-408.56,0.00020821,2]
[359124727,1745719850266,-463.2,0.00020821,2]
[359124728,1745719850275,-293.35,0.00020821,2]
[359124729,1745719850285,-400.0,0.00020821,2]
[359124730,1745719850294,-400.0,0.00020821,2]
[359124731,1745719850304,-403.99,0.00020821,2]
[359124732,1745719850313,-417.17,0.00020821,2]
[359124733,1745719850322,-674.92,0.00020821,2]
[359124734,1745719850332,-977.2,0.00020821,2]
[359124735,1745719850341,-400.0,0.00020821,2]
[359124736,1745719850352,-1478.94,0.00020821,2]
[359124737,1745719850361,-419.51,0.00020821,2]
[359124738,1745719850371,-885.16,0.00020821,2]
[359124739,1745719850381,-1255.34,0.00020821,2]
[359124740,1745719850390,-600.0,0.00020822,2]
[359124741,1745719850399,-316.30921931,0.00020866,3]
[359124742,1745719850409,-500.0,0.00020973,2]
[359124743,1745719850420,-162.86965262,0.00020973,2]
[359124744,1745719850429,-500.0,0.00020973,2]
[359124745,1745719850439,-15239.06790699,0.00021,2]
[359124746,1745719850456,-5449.56000187,0.00021,2]
[359124747,1745719850586,-400.0,0.00016438,2]
[359124748,1745719850597,-352.8820706,0.00016438,2]
[359124749,1745719850611,-151.87423943,0.00016438,2]
[359124750,1745719850624,-400.0,0.00016712,2]
[359124751,1745719850801,-310.77877542,0.00016986,2]
[359124752,1745719850812,-3651.99298633,0.00021,2]
[359124753,1745719850825,-25532.48407576,0.00021,2]
[359124754,1745719850837,-433.459998,0.00021,2]
[359124755,1745719850849,-690.27312543,0.00021,2]
[359124757,1745719943160,249.02,0.00021,10]
[359124780,1745720835127,-781.41458866,0.00015311,2]
[359124781,1745720835153,-1000.0,0.00015312,2]
[359124782,1745720835176,-300.0,0.0001541,2]
[359124783,1745720835198,-287.0,0.00015411,2]
[359124784,1745720835230,-116.54327318,0.00015411,2]
[359124786,1745720901598,-1491.05364914,0.000125,2]
[359124792,1745720950122,-300.0,0.0001541,2]
[359124793,1745720950152,-383.45672682,0.00015411,2]
[359124794,1745720950181,-244.72440539,0.00015411,2]
[359124821,1745721031790,-255.27559461,0.00015411,2]
[359124823,1745721031802,-163.60440539,0.00015411,2]
[359124826,1745721031819,-336.39559461,0.00015411,2]
[359124827,1745721031830,-500.0,0.00015411,2]
[359124829,1745721031840,-500.0,0.00015411,2]
[359124831,1745721031850,-554.89817097,0.00015411,2]
[359124832,1745721031860,-500.0,0.00015411,2]
[359124833,1745721031870,-293.4736765,0.00015411,2]
[359124834,1745721031879,-500.0,0.00015411,2]
[359124835,1745721031889,-1.34412622,0.00015411,2]
[359124838,1745721031900,-498.65587378,0.00015411,2]
[359124840,1745721031910,-22448.94873714,0.00015412,2]
[359124842,1745721031922,-2451.05126286,0.00015412,2]
[359124844,1745721031931,-250.0,0.00015522,2]
[359124846,1745721031940,-250.376976,0.00015771,2]
[359124847,1745721031950,-500.0,0.00016164,2]
[359124848,1745721031960,-781.41458866,0.00016231,2]
[359124849,1745721031971,-171.86544094,0.00016437,2]
[359124850,1745721031981,-500.0,0.00016437,2]
[359124851,1745721031992,-445.8110787,0.00016437,2]
[359124852,1745721032002,-468.2297106,0.00016437,2]
[359124853,1745721032011,-400.0,0.00016438,2]
[359124854,1745721032021,-400.0,0.00016438,2]
[359124855,1745721032031,-400.0,0.00016438,2]
[359124856,1745721032041,-400.0,0.00016438,2]
[359124857,1745721032052,-414.52463067,0.00016438,2]
[359124858,1745721032063,-400.0,0.00016438,2]
[359124859,1745721032073,-400.0,0.00016438,2]
[359124860,1745721032083,-517.70608007,0.00016438,2]
[359124861,1745721032093,-507.25406395,0.00016438,2]
[359124862,1745721032103,-311.33214982,0.00016438,2]
[359124863,1745721032115,-400.0,0.00016438,2]
[359124864,1745721032126,-400.0,0.00016438,2]
[359124865,1745721032137,-503.3678368,0.00016438,2]
[359124866,1745721032146,-400.0,0.00016438,2]
[359124867,1745721032156,-400.0,0.00016438,2]
[359124868,1745721032166,-400.0,0.00016438,2]
[359124869,1745721032184,-400.0,0.00016438,2]
[359124870,1745721032194,-504.52496372,0.00016438,2]
[359124871,1745721032203,-502.69051416,0.00016438,2]
[359124872,1745721032214,-400.0,0.00016438,2]
[359124873,1745721032224,-517.10870066,0.00016438,2]
[359124874,1745721032233,-505.92368729,0.00016438,2]
[359124875,1745721032244,-507.62110518,0.00016438,2]
[359124876,1745721032254,-400.0,0.00016438,2]
[359124877,1745721032263,-400.0,0.00016438,2]
[359124878,1745721032273,-409.7756127,0.00016438,2]
[359124879,1745721032282,-400.0,0.00016438,2]
[359124880,1745721032292,-200.65035061,0.00016438,2]
[359124881,1745721032301,-400.0,0.00016438,2]
[359124882,1745721032311,-400.0,0.00016438,2]
[359124883,1745721032320,-400.0,0.00016438,2]
[359124884,1745721032331,-400.0,0.00016438,2]
[359124885,1745721032341,-504.78199712,0.00016438,2]
[359124886,1745721032353,-400.0,0.00016438,2]
[359124887,1745721032363,-400.0,0.00016438,2]
[359124888,1745721032373,-400.0,0.00016438,2]
[359124889,1745721032384,-400.0,0.00016438,2]
[359124890,1745721032394,-400.0,0.00016438,2]
[359124891,1745721032407,-400.0,0.00016438,2]
[359124892,1745721032418,-400.0,0.00016438,2]
[359124893,1745721032428,-400.0,0.00016438,2]
[359124894,1745721032438,-400.0,0.00016438,2]
[359124896,1745721032451,-400.0,0.00016438,2]
[359124897,1745721032460,-400.0,0.00016438,2]
[359124898,1745721032469,-400.0,0.00016438,2]
[359124899,1745721032480,-400.0,0.00016438,2]
[359124900,1745721032490,-400.0,0.00016438,2]
[359124901,1745721032500,-400.0,0.00016438,2]
[359124902,1745721032510,-400.0,0.00016438,2]
[359124903,1745721032520,-400.0,0.00016438,2]
[359124904,1745721032530,-405.63091745,0.00016438,2]
[359124905,1745721032540,-403.71295292,0.00016438,2]
[359124906,1745721032550,-400.0,0.00016438,2]
[359124907,1745721032560,-406.17949444,0.00016438,2]
[359124908,1745721032569,-400.0,0.00016438,2]
[359124909,1745721032579,-400.0,0.00016438,2]
[359124910,1745721032590,-404.92753888,0.00016438,2]
[359124911,1745721032600,-400.0,0.00016438,2]
[359124912,1745721032610,-400.0,0.00016438,2]
[359124913,1745721032619,-504.30008984,0.00016438,2]
[359124914,1745721032629,-400.0,0.00016438,2]
[359124915,1745721032639,-178.79072615,0.00016438,2]
[359124916,1745721032648,-400.0,0.00016438,2]
[359124917,1745721032658,-400.0,0.00016438,2]
[359124918,1745721032668,-400.0,0.00016438,2]
[359124919,1745721032678,-400.0,0.00016438,2]
[359124920,1745721032689,-400.0,0.00016438,2]
[359124921,1745721032700,-400.0,0.00016438,2]
[359124922,1745721032710,-509.57854543,0.00016438,2]
[359124923,1745721032720,-400.0,0.00016438,2]
[359124924,1745721032729,-400.0,0.00016438,2]
[359124925,1745721032739,-403.21190212,0.00016438,2]
[359124926,1745721032748,-400.0,0.00016438,2]
[359124927,1745721032758,-400.0,0.00016438,2]
[359124928,1745721032768,-400.0,0.00016438,2]
[359124929,1745721032777,-400.0,0.00016438,2]
[359124930,1745721032788,-400.0,0.00016438,2]
[359124931,1745721032800,-400.0,0.00016438,2]
[359124932,1745721032810,-400.0,0.00016438,2]
[359124933,1745721032819,-400.0,0.00016438,2]
[359124934,1745721032829,-400.0,0.00016438,2]
[359124935,1745721032839,-505.28827396,0.00016438,2]
[359124936,1745721032848,-400.0,0.00016438,2]
[359124937,1745721032858,-400.0,0.00016438,2]
[359124938,1745721032868,-400.0,0.00016438,2]
[359124939,1745721032878,-400.0,0.00016438,2]
[359124940,1745721032888,-400.0,0.00016438,2]
[359124941,1745721032897,-206.35269144,0.00016438,2]
[359124942,1745721032907,-400.0,0.00016438,2]
[359124943,1745721032917,-400.0,0.00016438,2]
[359124944,1745721032926,-400.0,0.00016438,2]
[359124945,1745721032936,-458.5910628,0.00016438,2]
[359124946,1745721032949,-400.0,0.00016438,2]
[359124947,1745721032960,-400.0,0.00016438,2]
[359124948,1745721032971,-186.46855156,0.00016438,2]
[359124949,1745721032981,-197.99692643,0.00016438,2]
[359124950,1745721032990,-400.0,0.00016438,2]
[359124951,1745721033001,-400.0,0.00016438,2]
[359124952,1745721033010,-400.0,0.00016438,2]
[359124953,1745721033021,-400.0,0.00016438,2]
[359124954,1745721033031,-400.0,0.00016438,2]
[359124955,1745721033041,-400.0,0.00016438,2]
[359124956,1745721033052,-492.68938328,0.00016438,2]
[359124957,1745721033062,-400.0,0.00016438,2]
[359124958,1745721033073,-400.0,0.00016438,2]
[359124959,1745721033083,-400.0,0.00016438,2]
[359124960,1745721033093,-400.0,0.00016438,2]
[359124961,1745721033104,-400.0,0.00016438,2]
[359124962,1745721033114,-206.89225004,0.00016438,2]
[359124963,1745721033124,-400.0,0.00016438,2]
[359124964,1745721033134,-507.65288877,0.00016438,2]
[359124965,1745721033144,-400.0,0.00016438,2]
[359124966,1745721033155,-400.0,0.00016438,2]
[359124967,1745721033165,-400.0,0.00016438,2]
[359124968,1745721033179,-400.0,0.00016438,2]
[359124969,1745721033190,-537.83,0.00016438,2]
[359124970,1745721033203,-400.0,0.00016438,2]
[359124971,1745721033214,-505.14020065,0.00016438,2]
[359124972,1745721033225,-400.0,0.00016438,2]
[359124973,1745721033235,-508.01602704,0.00016438,2]
[359124974,1745721033246,-400.0,0.00016438,2]
[359124975,1745721033255,-400.0,0.00016438,2]
[359124976,1745721033267,-400.0,0.00016438,2]
[359124977,1745721033276,-400.0,0.00016438,2]
[359124978,1745721033287,-507.44205415,0.00016438,2]
[359124979,1745721033298,-400.0,0.00016438,2]
[359124980,1745721033307,-208.97242931,0.00016438,2]
[359124981,1745721033318,-400.0,0.00016438,2]
[359124982,1745721033327,-400.0,0.00016438,2]
[359124983,1745721033338,-316.96784081,0.00016438,2]
[359124984,1745721033347,-400.0,0.00016438,2]
[359124985,1745721033369,-400.0,0.00016438,2]
[359124986,1745721033382,-500.69212292,0.00016438,2]
[359124987,1745721033392,-400.0,0.00016438,2]
[359124988,1745721033402,-400.0,0.00016438,2]
[359124989,1745721033412,-400.0,0.00016438,2]
[359124990,1745721033422,-400.0,0.00016438,2]
[359124991,1745721033432,-400.0,0.00016438,2]
[359124992,1745721033443,-400.0,0.00016438,2]
[359124993,1745721033453,-524.19202815,0.00016438,2]
[359124994,1745721033463,-400.0,0.00016438,2]
[359124995,1745721033473,-400.0,0.00016438,2]
[359124996,1745721033483,-400.0,0.00016438,2]
[359124997,1745721033494,-824.37,0.00016438,2]
[359124998,1745721033504,-400.0,0.00016438,2]
[359124999,1745721033514,-400.0,0.00016438,2]
[359125000,1745721033524,-400.0,0.00016438,2]
[359125001,1745721033533,-400.0,0.00016438,2]
[359125002,1745721033544,-400.0,0.00016438,2]
[359125003,1745721033554,-400.0,0.00016438,2]
[359125004,1745721033564,-400.0,0.00016438,2]
[359125005,1745721033574,-400.0,0.00016438,2]
[359125006,1745721033584,-400.0,0.00016438,2]
[359125007,1745721033594,-584.56,0.00016438,2]
[359125008,1745721033604,-400.0,0.00016438,2]
[359125009,1745721033614,-868.84,0.00016438,2]
[359125010,1745721033624,-400.0,0.00016438,2]
[359125011,1745721033633,-400.0,0.00016438,2]
[359125012,1745721033643,-411.17,0.00016438,2]
[359125013,1745721033654,-1000.0,0.00016438,2]
[359125014,1745721033664,-1429.94031668,0.00016638,2]
[359125015,1745721033675,-150.6,0.00016702,3]
[359125016,1745721033685,-451.82,0.00016702,3]
[359125017,1745721033696,-150.6,0.00016702,3]
[359125018,1745721033711,-753.04,0.00016702,3]
[359125019,1745721033721,-197.78565677,0.00016712,2]
[359125020,1745721033731,-200.0,0.00016712,2]
[359125021,1745721033741,-400.0,0.00016712,2]
[359125022,1745721033753,-245.18198022,0.00016712,2]
[359125023,1745721033763,-400.0,0.00016712,2]
[359125024,1745721033774,-263.41330972,0.00016712,2]
[359125025,1745721033783,-400.0,0.00016712,2]
[359125026,1745721033794,-400.0,0.00016712,2]
[359125027,1745721033804,-400.0,0.00016712,2]
[359125028,1745721033813,-400.0,0.00016712,2]
[359125029,1745721033823,-400.0,0.00016712,2]
[359125030,1745721033833,-400.0,0.00016712,2]
[359125031,1745721033843,-400.0,0.00016712,2]
[359125032,1745721033852,-174.06158942,0.00016712,2]
[359125033,1745721033862,-400.0,0.00016712,2]
[359125034,1745721033872,-400.0,0.00016712,2]
[359125035,1745721033881,-400.0,0.00016712,2]
[359125036,1745721033891,-207.32080881,0.00016712,2]
[359125037,1745721033901,-400.0,0.00016712,2]
[359125038,1745721033911,-400.0,0.00016712,2]
[359125039,1745721033921,-400.0,0.00016712,2]
[359125040,1745721033930,-507.84691957,0.00016712,2]
[359125041,1745721033940,-322.96498213,0.00016712,2]
[359125042,1745721033951,-380.89460534,0.00016712,2]
[359125043,1745721033961,-400.0,0.00016712,2]
[359125044,1745721033971,-400.0,0.00016712,2]
[359125045,1745721033986,-400.0,0.00016712,2]
[359125046,1745721033996,-504.31570662,0.00016712,2]
[359125047,1745721034007,-400.0,0.00016712,2]
[359125048,1745721034016,-400.0,0.00016712,2]
[359125049,1745721034027,-508.3878361,0.00016712,2]
[359125050,1745721034037,-409.80545437,0.00016712,2]
[359125051,1745721034047,-505.43548539,0.00016712,2]
[359125052,1745721034057,-400.0,0.00016712,2]
[359125053,1745721034067,-400.0,0.00016712,2]
[359125054,1745721034077,-400.0,0.00016712,2]
[359125055,1745721034087,-502.85256169,0.00016712,2]
[359125056,1745721034097,-152.183687,0.00016712,2]
[359125057,1745721034107,-400.0,0.00016712,2]
[359125058,1745721034117,-400.0,0.00016712,2]
[359125059,1745721034127,-400.0,0.00016712,2]
[359125060,1745721034137,-400.0,0.00016712,2]
[359125061,1745721034148,-256.82329792,0.00016712,2]
[359125062,1745721034158,-400.0,0.00016712,2]
[359125063,1745721034168,-400.0,0.00016712,2]
[359125064,1745721034181,-400.0,0.00016712,2]
[359125065,1745721034191,-400.0,0.00016712,2]
[359125066,1745721034202,-400.0,0.00016712,2]
[359125067,1745721034212,-400.0,0.00016712,2]
[359125068,1745721034224,-400.0,0.00016712,2]
[359125069,1745721034234,-400.0,0.00016712,2]
[359125070,1745721034244,-192.13011805,0.00016712,2]
[359125071,1745721034254,-400.0,0.00016712,2]
[359125072,1745721034264,-400.0,0.00016712,2]
[359125073,1745721034274,-400.0,0.00016712,2]
[359125074,1745721034284,-400.0,0.00016712,2]
[359125075,1745721034294,-400.0,0.00016712,2]
[359125076,1745721034304,-400.0,0.00016712,2]
[359125077,1745721034314,-400.0,0.00016712,2]
[359125078,1745721034324,-400.0,0.00016712,2]
[359125079,1745721034333,-400.0,0.00016712,2]
[359125080,1745721034343,-400.0,0.00016712,2]
[359125081,1745721034354,-400.0,0.00016712,2]
[359125082,1745721034364,-400.0,0.00016712,2]
[359125083,1745721034374,-400.0,0.00016712,2]
[359125084,1745721034384,-400.0,0.00016712,2]
[359125085,1745721034395,-208.79367254,0.00016712,2]
[359125086,1745721034405,-400.0,0.00016712,2]
[359125087,1745721034416,-400.0,0.00016712,2]
[359125088,1745721034426,-400.0,0.00016712,2]
[359125089,1745721034436,-400.0,0.00016712,2]
[359125090,1745721034446,-400.0,0.00016712,2]
[359125091,1745721034456,-400.0,0.00016712,2]
[359125092,1745721034466,-400.0,0.00016712,2]
[359125093,1745721034476,-400.0,0.00016712,2]
[359125094,1745721034486,-400.0,0.00016712,2]
[359125095,1745721034497,-400.0,0.00016712,2]
[359125096,1745721034506,-400.0,0.00016712,2]
[359125097,1745721034517,-400.0,0.00016712,2]
[359125098,1745721034527,-400.0,0.00016712,2]
[359125099,1745721034537,-400.0,0.00016712,2]
[359125100,1745721034546,-400.0,0.00016712,2]
[359125101,1745721034556,-400.0,0.00016712,2]
[359125102,1745721034566,-400.0,0.00016712,2]
[359125103,1745721034576,-537.83,0.00016712,2]
[359125104,1745721034586,-400.0,0.00016712,2]
[359125105,1745721034596,-400.0,0.00016712,2]
[359125106,1745721034606,-400.0,0.00016712,2]
[359125107,1745721034618,-400.0,0.00016712,2]
[359125108,1745721034628,-400.0,0.00016712,2]
[359125109,1745721034638,-400.0,0.00016712,2]
[359125110,1745721034647,-400.0,0.00016712,2]
[359125111,1745721034658,-400.0,0.00016712,2]
[359125112,1745721034668,-400.0,0.00016712,2]
[359125113,1745721034678,-400.0,0.00016712,2]
[359125114,1745721034688,-400.0,0.00016712,2]
[359125115,1745721034698,-400.0,0.00016712,2]
[359125116,1745721034707,-400.0,0.00016712,2]
[359125117,1745721034717,-400.0,0.00016712,2]
[359125118,1745721034727,-400.0,0.00016712,2]
[359125119,1745721034737,-400.0,0.00016712,2]
[359125120,1745721034747,-400.0,0.00016712,2]
[359125121,1745721034757,-400.0,0.00016712,2]
[359125122,1745721034767,-400.0,0.00016712,2]
[359125123,1745721034777,-824.37,0.00016712,2]
[359125124,1745721034786,-400.0,0.00016712,2]
[359125125,1745721034796,-400.0,0.00016712,2]
[359125126,1745721034805,-400.0,0.00016712,2]
[359125127,1745721034815,-400.0,0.00016712,2]
[359125128,1745721034826,-400.0,0.00016712,2]
[359125129,1745721034835,-400.0,0.00016712,2]
[359125130,1745721034845,-400.0,0.00016712,2]
[359125131,1745721034855,-400.0,0.00016712,2]
[359125132,1745721034864,-400.0,0.00016712,2]
[359125133,1745721034874,-584.56,0.00016712,2]
[359125134,1745721034884,-400.0,0.00016712,2]
[359125135,1745721034893,-868.84,0.00016712,2]
[359125136,1745721034903,-400.0,0.00016712,2]
[359125137,1745721034913,-400.0,0.00016712,2]
[359125138,1745721034922,-411.17,0.00016712,2]
[359125139,1745721034932,-1500.0,0.00016712,2]
[359125140,1745721034942,-499.71659445,0.00016773,2]
[359125141,1745721034953,-456.35066625,0.00016773,2]
[359125142,1745721034963,-501.1284274,0.00016773,2]
[359125143,1745721034973,-500.0,0.00016773,2]
[359125144,1745721034984,-500.0,0.00016773,2]
[359125145,1745721034994,-336.68914233,0.000169,2]
[359125146,1745721035003,-400.0,0.00016986,2]
[359125147,1745721035014,-400.0,0.00016986,2]
[359125148,1745721035024,-400.0,0.00016986,2]
[359125149,1745721035033,-220.74937834,0.00016986,2]
[359125150,1745721035043,-400.0,0.00016986,2]
[359125151,1745721035052,-400.0,0.00016986,2]
[359125152,1745721035062,-400.0,0.00016986,2]
[359125153,1745721035072,-400.0,0.00016986,2]
[359125154,1745721035081,-400.0,0.00016986,2]
[359125155,1745721035271,-400.0,0.00016986,2]
[359125156,1745721035282,-400.0,0.00016986,2]
[359125157,1745721035292,-205.38071071,0.00016986,2]
[359125158,1745721035302,-400.0,0.00016986,2]
[359125159,1745721035312,-400.0,0.00016986,2]
[359125160,1745721035322,-214.56232669,0.00016986,2]
[359125161,1745721035331,-400.0,0.00016986,2]
[359125162,1745721035342,-400.0,0.00016986,2]
[359125163,1745721035352,-400.0,0.00016986,2]
[359125164,1745721035361,-400.0,0.00016986,2]
[359125165,1745721035371,-400.0,0.00016986,2]
[359125166,1745721035381,-400.0,0.00016986,2]
[359125167,1745721035391,-400.0,0.00016986,2]
[359125168,1745721035401,-400.0,0.00016986,2]
[359125169,1745721035411,-400.0,0.00016986,2]
[359125170,1745721035420,-400.0,0.00016986,2]
[359125171,1745721035430,-400.0,0.00016986,2]
[359125172,1745721035440,-400.0,0.00016986,2]
[359125173,1745721035450,-400.0,0.00016986,2]
[359125174,1745721035460,-400.0,0.00016986,2]